fUST/lending_fUST_20240824
["ID","MTS","AMOUNT","RATE_DAILY","PERIOD"]
[335708891,1724457053174,-422.48065002,0.00013698,2]
[335708892,1724457053183,-503.04034733,0.00013698,2]
[335708893,1724457053192,-500.0,0.00013698,2]
[335708894,1724457053201,-500.0,0.00013698,2]
[335708895,1724457053211,-606.12,0.00013698,2]
[335708896,1724457053220,-1437.37,0.00013698,2]
[335708897,1724457053228,-209.73889129,0.00013698,2]
[335708898,1724457053370,-601.48,0.00013698,2]
[335708899,1724457053379,-151.0,0.00013699,2]
[335708900,1724457053388,-151.0,0.00013699,2]
[335708901,1724457053400,-151.0,0.00013699,2]
[335708902,1724457053413,-151.0,0.00013699,2]
[335708903,1724457053422,-151.0,0.00013699,2]
[335708904,1724457053431,-297.897849,0.00013699,2]
[335708905,1724457053440,-297.897849,0.00013699,2]
[335708906,1724457053450,-618.454118,0.00013699,2]
[335708907,1724457053459,-618.454118,0.00013699,2]
[335708908,1724457053468,-151.0,0.00013699,2]
[335708909,1724457053477,-182.264849,0.00013699,2]
[335708910,1724457053486,-294.343446,0.00013699,2]
[335708911,1724457053495,-428.101604,0.00013699,2]
[335708912,1724457053505,-1243.873169,0.00013699,2]
[335708913,1724457053513,-428.101604,0.00013699,2]
[335708914,1724457053523,-254.486329,0.00013699,2]
[335708915,1724457053532,-254.486329,0.00013699,2]
[335708916,1724457053541,-151.0,0.00013699,2]
[335708917,1724457053551,-151.0,0.00013699,2]
[335708918,1724457053560,-151.0,0.00013699,2]
[335708919,1724457053569,-151.0,0.00013699,2]
[335708920,1724457053578,-151.0,0.00013699,2]
[335708921,1724457053587,-1342.711707,0.00013699,2]
[335708922,1724457053596,-1342.711707,0.00013699,2]
[335708923,1724457053606,-1342.711707,0.00013699,2]
[335708924,1724457053615,-1342.711707,0.00013699,2]
[335708925,1724457053624,-308.881337,0.00013699,2]
[335708926,1724457053634,-308.881337,0.00013699,2]
[335708927,1724457053643,-308.881337,0.00013699,2]
[335708928,1724457053653,-308.881337,0.00013699,2]
[335708929,1724457053662,-1103.918653,0.00013699,2]
[335708930,1724457053671,-1103.918653,0.00013699,2]
[335708931,1724457053681,-1103.918653,0.00013699,2]
[335708932,1724457053690,-1103.918653,0.00013699,2]
[335708933,1724457053700,-151.0,0.00013699,2]
[335708934,1724457053709,-151.0,0.00013699,2]
[335708935,1724457053718,-377.326299,0.00013699,2]
[335708936,1724457053727,-377.326299,0.00013699,2]
[335708937,1724457053738,-377.326299,0.00013699,2]
[335708938,1724457053748,-377.326299,0.00013699,2]
[335708939,1724457053758,-151.0,0.00013699,2]
[335708940,1724457053768,-185.530012,0.00013699,2]
[335708941,1724457053778,-151.0,0.00013699,2]
[335708942,1724457053787,-151.0,0.00013699,2]
[335708943,1724457053797,-151.0,0.00013699,2]
[335708944,1724457053806,-151.0,0.00013699,2]
[335708945,1724457053816,-151.0,0.00013699,2]
[335708946,1724457053825,-151.0,0.00013699,2]
[335708947,1724457053835,-3000.0,0.00013699,2]
[335708948,1724457053845,-151.0,0.00013699,2]
[335708949,1724457053855,-151.0,0.00013699,2]
[335708950,1724457053866,-400.505978,0.00013699,2]
[335708951,1724457053875,-400.505978,0.00013699,2]
[335708952,1724457053884,-151.0,0.00013699,2]
[335708953,1724457053893,-151.0,0.00013699,2]
[335708954,1724457053903,-400.505978,0.00013699,2]
[335708955,1724457053912,-400.505978,0.00013699,2]
[335708956,1724457053922,-151.0,0.00013699,2]
[335708957,1724457053931,-151.0,0.00013699,2]
[335708958,1724457053941,-500.0,0.00013699,2]
[335708959,1724457053950,-500.0,0.00013699,2]
[335708960,1724457053961,-379.04388187,0.00013699,2]
[335708961,1724457053971,-856.476368,0.00013699,2]
[335708962,1724457053981,-856.476368,0.00013699,2]
[335708963,1724457053990,-500.0,0.00013699,2]
[335708964,1724457054000,-500.0,0.00013699,2]
[335708965,1724457054010,-500.0,0.00013699,2]
[335708966,1724457054019,-500.0,0.00013699,2]
[335708967,1724457054028,-500.0,0.00013699,2]
[335708968,1724457054037,-500.0,0.00013699,2]
[335708969,1724457054046,-500.0,0.00013699,2]
[335708970,1724457054056,-500.0,0.00013699,2]
[335708971,1724457054065,-500.0,0.00013699,2]
[335708972,1724457054074,-500.0,0.00013699,2]
[335708973,1724457054084,-500.0,0.00013699,2]
[335708974,1724457054093,-500.0,0.00013699,2]
[335708975,1724457054103,-500.0,0.00013699,2]
[335708976,1724457054112,-500.0,0.00013699,2]
[335708977,1724457054121,-500.0,0.00013699,2]
[335708978,1724457054130,-500.0,0.00013699,2]
[335708979,1724457054139,-500.0,0.00013699,2]
[335708980,1724457054148,-500.0,0.00013699,2]
[335708981,1724457054158,-500.0,0.00013699,2]
[335708982,1724457054167,-500.0,0.00013699,2]
[335708983,1724457054176,-500.0,0.00013699,2]
[335708984,1724457054185,-500.0,0.00013699,2]
[335708985,1724457054194,-500.0,0.00013699,2]
[335708986,1724457054204,-500.0,0.00013699,2]
[335708987,1724457054213,-500.0,0.00013699,2]
[335708988,1724457054225,-500.0,0.00013699,2]
[335708989,1724457054235,-500.0,0.00013699,2]
[335708990,1724457054244,-500.0,0.00013699,2]
[335708991,1724457054253,-500.0,0.00013699,2]
[335708992,1724457054262,-500.0,0.00013699,2]
[335708993,1724457054272,-500.0,0.00013699,2]
[335708994,1724457054282,-500.0,0.00013699,2]
[335708995,1724457054291,-500.0,0.00013699,2]
[335708996,1724457054300,-500.0,0.00013699,2]
[335708997,1724457054310,-500.0,0.00013699,2]
[335708998,1724457054319,-500.0,0.00013699,2]
[335708999,1724457054328,-500.0,0.00013699,2]
[335709000,1724457054338,-500.0,0.00013699,2]
[335709001,1724457054347,-500.0,0.00013699,2]
[335709002,1724457054358,-500.0,0.00013699,2]
[335709003,1724457054368,-500.0,0.00013699,2]
[335709004,1724457054379,-500.0,0.00013699,2]
[335709005,1724457054388,-500.0,0.00013699,2]
[335709006,1724457054398,-500.0,0.00013699,2]
[335709007,1724457054407,-500.0,0.00013699,2]
[335709008,1724457054417,-500.0,0.00013699,2]
[335709009,1724457054426,-500.0,0.00013699,2]
[335709010,1724457054435,-500.0,0.00013699,2]
[335709011,1724457054446,-500.0,0.00013699,2]
[335709012,1724457054456,-500.0,0.00013699,2]
[335709013,1724457054466,-500.0,0.00013699,2]
[335709014,1724457054477,-500.0,0.00013699,2]
[335709015,1724457054487,-500.0,0.00013699,2]
[335709016,1724457054497,-500.0,0.00013699,2]
[335709017,1724457054507,-500.0,0.00013699,2]
[335709018,1724457054518,-599.51167741,0.00013699,2]
[335709019,1724457054528,-654.39410909,0.00013699,2]
[335709020,1724457054538,-654.39410909,0.00013699,2]
[335709021,1724457054547,-654.39410909,0.00013699,2]
[335709022,1724457054556,-654.39410909,0.00013699,2]
[335709023,1724457054566,-654.39410909,0.00013699,2]
[335709024,1724457054575,-654.39410909,0.00013699,2]
[335709025,1724457054586,-654.39410909,0.00013699,2]
[335709026,1724457054596,-654.39410909,0.00013699,2]
[335709027,1724457054605,-654.39410909,0.00013699,2]
[335709028,1724457054614,-654.39410909,0.00013699,2]
[335709029,1724457054624,-654.39410909,0.00013699,2]
[335709030,1724457054634,-654.39410909,0.00013699,2]
[335709031,1724457054643,-654.39410909,0.00013699,2]
[335709032,1724457054653,-654.39410909,0.00013699,2]
[335709033,1724457054662,-654.39410909,0.00013699,2]
[335709034,1724457054671,-654.39410909,0.00013699,2]
[335709035,1724457054680,-654.39410909,0.00013699,2]
[335709036,1724457054689,-654.39410909,0.00013699,2]
[335709037,1724457054698,-654.39410909,0.00013699,2]
[335709038,1724457054707,-654.39410909,0.00013699,2]
[335709039,1724457054716,-654.39410909,0.00013699,2]
[335709040,1724457054725,-654.39410909,0.00013699,2]
[335709041,1724457054734,-654.39410909,0.00013699,2]
[335709042,1724457054744,-428.101604,0.00013699,2]
[335709043,1724457054754,-428.101604,0.00013699,2]
[335709044,1724457054763,-195.13349832,0.00013699,2]
[335709045,1724457054772,-254.486329,0.00013699,2]
[335709046,1724457054782,-254.486329,0.00013699,2]
[335709047,1724457054791,-485.525918,0.00013699,2]
[335709048,1724457054801,-485.525918,0.00013699,2]
[335709049,1724457054810,-151.0,0.00013699,2]
[335709050,1724457054819,-151.0,0.00013699,2]
[335709051,1724457054830,-151.0,0.00013699,2]
[335709052,1724457054840,-150.112233,0.000137,2]
[335709053,1724457054850,-150.112233,0.000137,2]
[335709054,1724457054859,-155.00128586,0.00013792,2]
[335709055,1724457054868,-160.91376027,0.00013792,2]
[335709056,1724457054878,-862.83835129,0.00013792,2]
[335709057,1724457054887,-934.07929589,0.00013792,2]
[335709058,1724457054896,-200.0,0.00013792,2]
[335709059,1724457054905,-195.63337011,0.00013792,2]
[335709060,1724457054914,-154.72922386,0.00013792,2]
[335709061,1724457054923,-154.72922386,0.00013792,2]
[335709062,1724457054933,-727.69795968,0.00013792,2]
[335709063,1724457054942,-306.81256045,0.00013792,2]
[335709064,1724457054952,-183.02023994,0.00013792,2]
[335709065,1724457054961,-602.12270351,0.00013792,2]
[335709066,1724457054970,-776.60185887,0.00013792,2]
[335709067,1724457054980,-150.112233,0.000138,2]
[335709068,1724457054989,-150.112233,0.000138,2]
[335709069,1724457054999,-150.112233,0.000138,2]
[335709070,1724457055008,-150.112233,0.000138,2]
[335709071,1724457055017,-618.454118,0.00013869,2]
[335709072,1724457055027,-618.454118,0.00013869,2]
[335709073,1724457055036,-151.0,0.00013869,2]
[335709074,1724457055046,-2416.53,0.00013869,2]
[335709075,1724457055057,-2416.53,0.00013869,2]
[335709076,1724457055067,-2416.53,0.00013869,2]
[335709077,1724457055077,-150.112233,0.000139,2]
[335709078,1724457055088,-150.112233,0.000139,2]
[335709079,1724457055097,-150.112233,0.000139,2]
[335709080,1724457055107,-150.112233,0.000139,2]
[335709081,1724457055116,-150.112233,0.000139,2]
[335709082,1724457055124,-150.112233,0.000139,2]
[335709083,1724457055133,-150.112233,0.000139,2]
[335709084,1724457055142,-2416.53,0.0001397,2]
[335709085,1724457055152,-2416.53,0.00013971,2]
[335709086,1724457055161,-2416.53,0.00013971,2]
[335709087,1724457055170,-2416.53,0.00013971,2]
[335709088,1724457055179,-2416.53,0.00013971,2]
[335709089,1724457055189,-2416.53,0.00013971,2]
[335709090,1724457055198,-2416.53,0.00013971,2]
[335709091,1724457055208,-2416.64197633,0.00013971,2]
[335709092,1724457055217,-1060.12,0.00013971,2]
[335709093,1724457055228,-1060.12,0.00013971,2]
[335709094,1724457055237,-1060.12,0.00013971,2]
[335709095,1724457055246,-1060.12,0.00013971,2]
[335709096,1724457055256,-1060.12,0.00013971,2]
[335709097,1724457055266,-1060.12,0.00013971,2]
[335709098,1724457055276,-1060.29,0.00013971,2]
[335709099,1724457055285,-151.0,0.00013971,2]
[335709100,1724457055294,-155.104913,0.00013971,2]
[335709101,1724457055303,-154.72922386,0.00013971,2]
[335709102,1724457055312,-22003.94882025,0.00013971,2]
[335709103,1724457055322,-154.72922386,0.00013971,2]
[335709104,1724457055332,-255.15136643,0.00013971,2]
[335709105,1724457055342,-288.40254199,0.00013971,2]
[335709106,1724457055351,-3093.89381195,0.00013971,2]
[335709107,1724457055361,-493.52644239,0.00013971,2]
[335709108,1724457055371,-2167.07978808,0.00013971,2]
[335709109,1724457055380,-223.61425434,0.00013971,2]
[335709110,1724457055389,-154.92779168,0.00013971,2]
[335709111,1724457055399,-1767.10106411,0.00013971,2]
[335709112,1724457055408,-157.15769108,0.00013971,2]
[335709113,1724457055417,-495.34936838,0.00013971,2]
[335709114,1724457055427,-500.0,0.00013972,2]
[335709115,1724457055436,-500.0,0.00013972,2]
[335709116,1724457055577,-588.59,0.00013972,2]
[335709117,1724457055590,-500.0,0.00013972,2]
[335709118,1724457055599,-500.0,0.00013972,2]
[335709119,1724457055609,-500.0,0.00013972,2]
[335709120,1724457055618,-2095.65,0.00013972,2]
[335709121,1724457055628,-500.0,0.00013972,2]
[335709122,1724457055637,-500.0,0.00013972,2]
[335709123,1724457055647,-500.0,0.00013972,2]
[335709124,1724457055657,-500.0,0.00013972,2]
[335709125,1724457055666,-500.0,0.00013972,2]
[335709126,1724457055676,-153.96,0.00013972,2]
[335709127,1724457055685,-500.0,0.00013972,2]
[335709128,1724457055694,-500.0,0.00013972,2]
[335709129,1724457055703,-526.99,0.00013972,2]
[335709130,1724457055713,-752.71,0.00013972,2]
[335709131,1724457055722,-500.0,0.00013972,2]
[335709132,1724457055731,-500.0,0.00013972,2]
[335709133,1724457055741,-545.77,0.00013972,2]
[335709134,1724457055750,-152.74317081,0.00013972,2]
[335709135,1724457055761,-500.0,0.00013972,2]
[335709136,1724457055771,-500.0,0.00013972,2]
[335709137,1724457055781,-500.0,0.00013972,2]
[335709138,1724457055790,-315.12849873,0.00013972,2]
[335709139,1724457055800,-500.0,0.00013972,2]
[335709140,1724457055809,-500.0,0.00013972,2]
[335709141,1724457055819,-519.78,0.00013972,2]
[335709142,1724457055828,-1097.18,0.00013972,2]
[335709143,1724457055838,-500.0,0.00013972,2]
[335709144,1724457055848,-500.0,0.00013972,2]
[335709145,1724457055858,-500.0,0.00013972,2]
[335709146,1724457055867,-522.93514949,0.00013972,2]
[335709147,1724457055877,-500.0,0.00013972,2]
[335709148,1724457055886,-500.0,0.00013972,2]
[335709149,1724457055896,-500.0,0.00013972,2]
[335709150,1724457055907,-500.0,0.00013972,2]
[335709151,1724457055917,-500.0,0.00013972,2]
[335709152,1724457055927,-500.0,0.00013972,2]
[335709153,1724457055937,-500.16925323,0.00013972,2]
[335709154,1724457055947,-500.0,0.00013972,2]
[335709155,1724457055957,-500.0,0.00013972,2]
[335709156,1724457055967,-847.35,0.00013972,2]
[335709157,1724457055977,-500.0,0.00013972,2]
[335709158,1724457055987,-500.0,0.00013972,2]
[335709159,1724457055996,-500.0,0.00013972,2]
[335709160,1724457056006,-500.0,0.00013972,2]
[335709161,1724457056016,-747.4,0.00013972,2]
[335709162,1724457056026,-500.0,0.00013972,2]
[335709163,1724457056036,-500.0,0.00013972,2]
[335709164,1724457056046,-151.0,0.00013972,2]
[335709165,1724457056056,-151.0,0.00013972,2]
[335709166,1724457056065,-151.0,0.00013972,2]
[335709167,1724457056075,-500.0,0.00013972,2]
[335709168,1724457056092,-500.0,0.00013972,2]
[335709169,1724457056105,-500.0,0.00013972,2]
[335709170,1724457056115,-500.0,0.00013972,2]
[335709171,1724457056124,-500.0,0.00013972,2]
[335709172,1724457056133,-500.0,0.00013972,2]
[335709173,1724457056143,-500.0,0.00013972,2]
[335709174,1724457056153,-500.0,0.00013972,2]
[335709175,1724457056162,-693.18,0.00013972,2]
[335709176,1724457056171,-999.3,0.00013972,2]
[335709177,1724457056181,-625.75,0.00013972,2]
[335709178,1724457056191,-500.0,0.00013972,2]
[335709179,1724457056200,-500.0,0.00013972,2]
[335709180,1724457056209,-641.21,0.00013972,2]
[335709181,1724457056219,-500.0,0.00013972,2]
[335709182,1724457056228,-450.03357233,0.00013972,2]
[335709183,1724457056238,-500.0,0.00013972,2]
[335709184,1724457056247,-665.86,0.00013972,2]
[335709185,1724457056257,-500.0,0.00013972,2]
[335709186,1724457056267,-631.4,0.00013972,2]
[335709187,1724457056277,-1007.23,0.00013972,2]
[335709188,1724457056287,-558.15636667,0.00013972,2]
[335709189,1724457056296,-500.0,0.00013972,2]
[335709190,1724457056305,-1070.44,0.00013972,2]
[335709191,1724457056314,-500.0,0.00013972,2]
[335709192,1724457056323,-500.0,0.00013972,2]
[335709193,1724457056333,-500.0,0.00013972,2]
[335709194,1724457056343,-500.0,0.00013972,2]
[335709195,1724457056353,-500.0,0.00013972,2]
[335709196,1724457056363,-500.0,0.00013972,2]
[335709197,1724457056372,-472.73768463,0.00013972,2]
[335709198,1724457056382,-500.0,0.00013972,2]
[335709199,1724457056392,-500.0,0.00013972,2]
[335709200,1724457056401,-500.0,0.00013972,2]
[335709201,1724457056414,-500.0,0.00013972,2]
[335709202,1724457056423,-500.0,0.00013972,2]
[335709203,1724457056432,-585.12,0.00013972,2]
[335709204,1724457056442,-500.0,0.00013972,2]
[335709205,1724457056450,-500.0,0.00013972,2]
[335709206,1724457056459,-500.0,0.00013972,2]
[335709207,1724457056468,-1418.2,0.00013972,2]
[335709208,1724457056478,-500.0,0.00013972,2]
[335709209,1724457056487,-279.88683784,0.00013972,2]
[335709210,1724457056496,-500.0,0.00013972,2]
[335709211,1724457056506,-500.0,0.00013972,2]
[335709212,1724457056516,-500.0,0.00013972,2]
[335709213,1724457056527,-500.0,0.00013972,2]
[335709214,1724457056538,-869.1,0.00013972,2]
[335709215,1724457056549,-500.0,0.00013972,2]
[335709216,1724457056560,-500.0,0.00013972,2]
[335709217,1724457056569,-458.5888894,0.00013972,2]
[335709218,1724457056578,-1045.36,0.00013972,2]
[335709219,1724457056589,-500.0,0.00013972,2]
[335709220,1724457056598,-500.0,0.00013972,2]
[335709221,1724457056607,-856.476368,0.00013972,2]
[335709222,1724457056616,-856.476368,0.00013972,2]
[335709223,1724457056625,-856.476368,0.00013972,2]
[335709224,1724457056636,-500.0,0.00013972,2]
[335709225,1724457056646,-856.476368,0.00013972,2]
[335709226,1724457056655,-856.476368,0.00013972,2]
[335709227,1724457056664,-856.476368,0.00013972,2]
[335709228,1724457056674,-717.25,0.00013972,2]
[335709229,1724457056684,-500.0,0.00013972,2]
[335709230,1724457056693,-500.0,0.00013972,2]
[335709231,1724457056702,-500.0,0.00013972,2]
[335709232,1724457056711,-500.0,0.00013972,2]
[335709233,1724457056720,-662.12,0.00013972,2]
[335709234,1724457056732,-939.62,0.00013972,2]
[335709235,1724457056744,-1125.88,0.00013972,2]
[335709236,1724457056754,-500.0,0.00013972,2]
[335709237,1724457056764,-500.0,0.00013972,2]
[335709238,1724457056774,-500.0,0.00013972,2]
[335709239,1724457056783,-1362.24,0.00013972,2]
[335709240,1724457056793,-500.0,0.00013972,2]
[335709241,1724457056802,-1778.26,0.00013972,2]
[335709242,1724457056812,-500.0,0.00013972,2]
[335709243,1724457056821,-1366.07,0.00013972,2]
[335709244,1724457056831,-948.73,0.00013972,2]
[335709245,1724457056845,-500.0,0.00013972,2]
[335709246,1724457056855,-1087.66,0.00013972,2]
[335709247,1724457056864,-736.36,0.00013972,2]
[335709248,1724457056874,-500.0,0.00013972,2]
[335709249,1724457056884,-151.0,0.00013972,2]
[335709250,1724457056893,-151.0,0.00013972,2]
[335709251,1724457056902,-151.0,0.00013972,2]
[335709252,1724457056911,-500.0,0.00013972,2]
[335709253,1724457056921,-500.0,0.00013972,2]
[335709254,1724457056930,-500.0,0.00013972,2]
[335709255,1724457056940,-500.0,0.00013972,2]
[335709256,1724457056949,-537.67,0.00013972,2]
[335709257,1724457056958,-500.0,0.00013972,2]
[335709258,1724457056968,-572.54,0.00013972,2]
[335709259,1724457056977,-3438.29,0.00013972,2]
[335709260,1724457056987,-500.0,0.00013972,2]
[335709261,1724457056996,-500.0,0.00013972,2]
[335709262,1724457057006,-500.0,0.00013972,2]
[335709263,1724457057017,-500.0,0.00013972,2]
[335709264,1724457057028,-500.0,0.00013972,2]
[335709265,1724457057038,-500.0,0.00013972,2]
[335709266,1724457057050,-500.0,0.00013972,2]
[335709267,1724457057060,-1202.74,0.00013972,2]
[335709268,1724457057071,-500.0,0.00013972,2]
[335709269,1724457057080,-3129.88,0.00013972,2]
[335709270,1724457057090,-500.0,0.00013972,2]
[335709271,1724457057099,-500.0,0.00013972,2]
[335709272,1724457057108,-151.0,0.00013972,2]
[335709273,1724457057118,-500.0,0.00013972,2]
[335709274,1724457057127,-500.0,0.00013972,2]
[335709275,1724457057136,-500.0,0.00013972,2]
[335709276,1724457057145,-500.0,0.00013972,2]
[335709277,1724457057154,-500.0,0.00013972,2]
[335709278,1724457057163,-500.0,0.00013972,2]
[335709279,1724457057172,-500.0,0.00013972,2]
[335709280,1724457057182,-500.0,0.00013972,2]
[335709281,1724457057191,-500.0,0.00013972,2]
[335709282,1724457057200,-500.0,0.00013972,2]
[335709283,1724457057210,-500.0,0.00013972,2]
[335709284,1724457057220,-500.0,0.00013972,2]
[335709285,1724457057230,-1128.2,0.00013972,2]
[335709286,1724457057239,-1028.3,0.00013972,2]
[335709287,1724457057247,-542.2001206,0.00013972,2]
[335709288,1724457057258,-788.91,0.00013972,2]
[335709289,1724457057268,-500.0,0.00013972,2]
[335709290,1724457057277,-330.78776455,0.00013972,2]
[335709291,1724457057287,-500.0,0.00013972,2]
[335709292,1724457057296,-500.0,0.00013972,2]
[335709293,1724457057305,-500.0,0.00013972,2]
[335709294,1724457057315,-616.49,0.00013972,2]
[335709295,1724457057323,-500.0,0.00013972,2]
[335709296,1724457057336,-500.0,0.00013972,2]
[335709297,1724457057345,-500.0,0.00013972,2]
[335709298,1724457057355,-500.0,0.00013972,2]
[335709299,1724457057364,-542.16,0.00013972,2]
[335709300,1724457057375,-500.0,0.00013972,2]
[335709301,1724457057385,-500.0,0.00013972,2]
[335709302,1724457057394,-501.53474454,0.00013972,2]
[335709303,1724457057403,-610.58,0.00013972,2]
[335709304,1724457057412,-500.0,0.00013972,2]
[335709305,1724457057421,-500.0,0.00013972,2]
[335709306,1724457057430,-500.0,0.00013972,2]
[335709307,1724457057439,-500.0,0.00013972,2]
[335709308,1724457057448,-795.0,0.00013972,2]
[335709309,1724457057458,-695.2,0.00013972,2]
[335709310,1724457057468,-603.58,0.00013972,2]
[335709311,1724457057477,-500.0,0.00013972,2]
[335709312,1724457057486,-1323.75,0.00013972,2]
[335709313,1724457057495,-500.0,0.00013972,2]
[335709314,1724457057504,-500.0,0.00013972,2]
[335709315,1724457057513,-500.0,0.00013972,2]
[335709316,1724457057522,-500.0,0.00013972,2]
[335709317,1724457057655,-2367.26,0.00013972,2]
[335709318,1724457057664,-500.0,0.00013972,2]
[335709319,1724457057674,-500.0,0.00013972,2]
[335709320,1724457057683,-500.0,0.00013972,2]
[335709321,1724457057692,-500.0,0.00013972,2]
[335709322,1724457057701,-841.52,0.00013972,2]
[335709323,1724457057710,-500.0,0.00013972,2]
[335709324,1724457057720,-500.0,0.00013972,2]
[335709325,1724457057729,-1341.22,0.00013972,2]
[335709326,1724457057738,-151.0,0.00013972,2]
[335709327,1724457057747,-151.0,0.00013972,2]
[335709328,1724457057756,-500.0,0.00013972,2]
[335709329,1724457057765,-151.0,0.00013972,2]
[335709330,1724457057774,-151.0,0.00013972,2]
[335709331,1724457057783,-500.0,0.00013972,2]
[335709332,1724457057792,-500.0,0.00013972,2]
[335709333,1724457057802,-151.0,0.00013972,2]
[335709334,1724457057811,-500.0,0.00013972,2]
[335709335,1724457057821,-500.0,0.00013972,2]
[335709336,1724457057829,-500.0,0.00013972,2]
[335709337,1724457057839,-500.0,0.00013972,2]
[335709338,1724457057848,-500.0,0.00013972,2]
[335709339,1724457057858,-151.0,0.00013972,2]
[335709340,1724457057867,-151.0,0.00013972,2]
[335709341,1724457057876,-151.0,0.00013972,2]
[335709342,1724457057885,-500.0,0.00013972,2]
[335709343,1724457057895,-151.0,0.00013972,2]
[335709344,1724457057904,-2631.85,0.00013972,2]
[335709345,1724457057913,-839.3,0.00013972,2]
[335709346,1724457057923,-500.0,0.00013972,2]
[335709347,1724457057933,-605.37,0.00013972,2]
[335709348,1724457057942,-1566.39,0.00013972,2]
[335709349,1724457057951,-862.6,0.00013972,2]
[335709350,1724457057960,-297.897849,0.00013972,2]
[335709351,1724457057970,-683.26484786,0.00013972,2]
[335709352,1724457058649,-18.28235278,0.00013972,2]
[335709353,1724457058668,-2.23279936,0.00013972,2]
[335709354,1724457058683,-297.897849,0.00013972,2]
[335709355,1724457058699,-297.897849,0.00013972,2]
[335709356,1724457058714,-500.0,0.00013972,2]
[335709357,1724457058730,-297.897849,0.00013972,2]
[335709358,1724457058746,-500.0,0.00013972,2]
[335709359,1724457058762,-500.0,0.00013972,2]
[335709360,1724457058776,-617.92,0.00013972,2]
[335709361,1724457058791,-297.897849,0.00013972,2]
[335709362,1724457058806,-204.17647764,0.00013972,2]
[335709363,1724457059862,-155.13714738,0.00013051,2]
[335709364,1724457059872,-500.0,0.00013698,2]
[335709365,1724457059881,-875.98,0.00013698,2]
[335709366,1724457059891,-258.737621,0.00013699,2]
[335709367,1724457059901,-258.737621,0.00013699,2]
[335709368,1724457059911,-269.37416657,0.00013792,2]
[335709369,1724457059923,-93.72137136,0.00013972,2]
[335709370,1724457059933,-297.897849,0.00013972,2]
[335709371,1724457059943,-297.897849,0.00013972,2]
[335709372,1724457059954,-555.41545467,0.00013972,2]
[335709373,1724457059965,-956.64,0.00013972,2]
[335709374,1724457059975,-500.0,0.00013972,2]
[335709375,1724457059985,-500.0,0.00013972,2]
[335709376,1724457059994,-1174.78,0.00013972,2]
[335709377,1724457060004,-500.0,0.00013972,2]
[335709378,1724457060013,-846.8,0.00013972,2]
[335709379,1724457060023,-653.08,0.00013972,2]
[335709380,1724457060032,-618.454118,0.00013972,2]
[335709381,1724457060042,-618.454118,0.00013972,2]
[335709382,1724457060051,-618.454118,0.00013972,2]
[335709383,1724457060061,-618.454118,0.00013972,2]
[335709384,1724457060071,-618.454118,0.00013972,2]
[335709385,1724457060080,-283.873353,0.00013972,2]
[335709386,1724457060093,-618.454118,0.00013972,2]
[335709387,1724457060104,-1554.86,0.00013972,2]
[335709388,1724457060113,-500.0,0.00013972,2]
[335709389,1724457060123,-500.0,0.00013972,2]
[335709390,1724457060132,-500.0,0.00013972,2]